fUSD/lending_fUSD_20250608
["ID","MTS","AMOUNT","RATE_DAILY","PERIOD"]
[365045264,1749425442551,-671.69,0.00018696,2]
[365045265,1749425442560,-216.701922,0.00018696,2]
[365045266,1749425442570,-216.701922,0.00018696,2]
[365045267,1749425442579,-480.0,0.00018696,2]
[365045268,1749425442589,-726.95,0.00018696,2]
[365045269,1749425442598,-3051.56,0.00018696,2]
[365045270,1749425442607,-480.0,0.00018696,2]
[365045271,1749425442617,-524.16,0.00018696,2]
[365045272,1749425442628,-480.0,0.00018696,2]
[365045273,1749425442637,-480.0,0.00018696,2]
[365045274,1749425442646,-486.42,0.00018696,2]
[365045275,1749425442655,-480.0,0.00018696,2]
[365045276,1749425442664,-480.0,0.00018696,2]
[365045277,1749425442673,-480.0,0.00018696,2]
[365045278,1749425442682,-480.0,0.00018696,2]
[365045279,1749425442695,-480.0,0.00018696,2]
[365045280,1749425442705,-480.0,0.00018696,2]
[365045281,1749425442714,-7615.28,0.00018696,2]
[365045282,1749425442723,-647.27,0.00018696,2]
[365045283,1749425442732,-999.15,0.00018696,2]
[365045284,1749425442741,-701.71,0.00018696,2]
[365045285,1749425442750,-480.0,0.00018696,2]
[365045286,1749425442760,-480.0,0.00018696,2]
[365045287,1749425442773,-480.0,0.00018696,2]
[365045288,1749425442782,-480.0,0.00018696,2]
[365045289,1749425442791,-480.0,0.00018696,2]
[365045290,1749425442800,-480.0,0.00018696,2]
[365045291,1749425442810,-480.0,0.00018696,2]
[365045292,1749425443001,-480.0,0.00018696,2]
[365045293,1749425443011,-480.0,0.00018696,2]
[365045294,1749425443020,-2000.0,0.00018696,2]
[365045295,1749425443030,-542.42,0.00018696,2]
[365045296,1749425443040,-480.0,0.00018696,2]
[365045297,1749425443049,-480.0,0.00018696,2]
[365045298,1749425443059,-480.0,0.00018696,2]
[365045299,1749425443068,-480.0,0.00018696,2]
[365045300,1749425443078,-480.0,0.00018696,2]
[365045301,1749425443087,-480.0,0.00018696,2]
[365045302,1749425443096,-480.0,0.00018696,2]
[365045303,1749425443105,-480.0,0.00018696,2]
[365045304,1749425443115,-480.0,0.00018696,2]
[365045305,1749425443124,-1766.62,0.00018696,2]
[365045306,1749425443134,-480.0,0.00018696,2]
[365045307,1749425443144,-480.0,0.00018696,2]
[365045308,1749425443153,-480.0,0.00018696,2]
[365045309,1749425443163,-492.06,0.00018696,2]
[365045310,1749425443172,-2396.23,0.00018696,2]
[365045311,1749425443181,-480.0,0.00018696,2]
[365045313,1749425443191,-480.0,0.00018696,2]
[365045315,1749425443200,-480.0,0.00018696,2]
[365045316,1749425443209,-480.0,0.00018696,2]
[365045318,1749425443219,-2764.63,0.00018696,2]
[365045320,1749425443228,-540.0,0.00018696,2]
[365045321,1749425443237,-480.0,0.00018696,2]
[365045323,1749425443247,-480.0,0.00018696,2]
[365045324,1749425443256,-480.0,0.00018696,2]
[365045325,1749425443265,-3777.34,0.00018696,2]
[365045326,1749425443275,-560.86090184,0.00018696,2]
[365045327,1749425443285,-480.0,0.00018696,2]
[365045328,1749425443295,-480.0,0.00018696,2]
[365045329,1749425443304,-480.0,0.00018696,2]
[365045330,1749425443313,-480.0,0.00018696,2]
[365045331,1749425443323,-480.0,0.00018696,2]
[365045332,1749425443332,-151.0,0.00018696,2]
[365045333,1749425443341,-151.0,0.00018696,2]
[365045334,1749425443352,-480.0,0.00018696,2]
[365045335,1749425443363,-480.0,0.00018696,2]
[365045336,1749425443372,-539.01372269,0.00018696,2]
[365045337,1749425443382,-878.95,0.00018696,2]
[365045338,1749425443392,-480.0,0.00018696,2]
[365045339,1749425443403,-232.18047,0.00018696,2]
[365045340,1749425443414,-460.0,0.00018696,2]
[365045341,1749425443423,-480.0,0.00018696,2]
[365045342,1749425443433,-151.0,0.00018696,2]
[365045343,1749425443443,-151.0,0.00018696,2]
[365045344,1749425443453,-1299.39,0.00018696,2]
[365045345,1749425443462,-480.0,0.00018696,2]
[365045346,1749425443472,-480.0,0.00018696,2]
[365045347,1749425443482,-480.0,0.00018696,2]
[365045348,1749425443491,-480.0,0.00018696,2]
[365045349,1749425443501,-480.0,0.00018697,2]
[365045350,1749425443511,-1194.38,0.00018697,2]
[365045351,1749425443520,-604.14,0.00018697,2]
[365045352,1749425443531,-693.04,0.00018697,2]
[365045353,1749425443541,-360.0,0.00018697,2]
[365045354,1749425443550,-808.23,0.00018697,2]
[365045355,1749425443560,-480.0,0.00018697,2]
[365045356,1749425443569,-480.0,0.00018697,2]
[365045357,1749425443580,-480.0,0.00018697,2]
[365045358,1749425443590,-480.0,0.00018697,2]
[365045359,1749425443600,-480.0,0.00018697,2]
[365045360,1749425443609,-480.0,0.00018697,2]
[365045361,1749425443618,-480.0,0.00018697,2]
[365045362,1749425443629,-480.0,0.00018697,2]
[365045363,1749425443638,-480.0,0.00018697,2]
[365045364,1749425443649,-480.0,0.00018697,2]
[365045365,1749425443658,-480.0,0.00018697,2]
[365045366,1749425443668,-480.0,0.00018697,2]
[365045368,1749425443677,-151.0,0.00018697,2]
[365045369,1749425443688,-216.701922,0.00018697,2]
[365045371,1749425443699,-216.701922,0.00018697,2]
[365045373,1749425443708,-151.0,0.00018697,2]
[365045375,1749425443718,-151.0,0.00018697,2]
[365045376,1749425443727,-600.0,0.000187,6]
[365045377,1749425443740,-1435.41,0.0001873,2]
[365045378,1749425443750,-2824.29885017,0.00018741,2]
[365045379,1749425443759,-157.318626,0.00018758,2]
[365045381,1749425443769,-5000.0,0.00018761,2]
[365045382,1749425443778,-151.0,0.00018799,2]
[365045383,1749425443788,-37184.276,0.000188,2]
[365045384,1749425443797,-176.059828,0.000188,2]
[365045385,1749425443807,-376.0,0.000188,2]
[365045386,1749425443816,-768.0,0.000188,2]
[365045387,1749425443826,-216.701922,0.000188,2]
[365045388,1749425443835,-216.701922,0.000188,2]
[365045389,1749425443844,-237.0,0.000188,2]
[365045390,1749425443854,-1435.41,0.000188,2]
[365045391,1749425443864,-500.0,0.000188,2]
[365045392,1749425443873,-151.0,0.000188,2]
[365045393,1749425443883,-151.0,0.000188,2]
[365045394,1749425443892,-1200.0,0.000188,6]
[365045395,1749425443901,-8371.67514523,0.00018806,2]
[365045396,1749425443911,-250.0,0.00018844,2]
[365045397,1749425443920,-150.0,0.00018849,2]
[365045398,1749425443930,-150.0,0.00018849,2]
[365045399,1749425443939,-150.0,0.00018849,2]
[365045400,1749425443948,-150.0,0.00018849,2]
[365045401,1749425443957,-150.0,0.00018849,2]
[365045402,1749425443967,-150.0,0.00018849,2]
[365045403,1749425443976,-150.0,0.00018849,2]
[365045404,1749425443985,-150.0,0.00018849,2]
[365045405,1749425443995,-150.0,0.00018849,2]
[365045406,1749425444004,-150.0,0.00018849,2]
[365045407,1749425444015,-480.0,0.0001885,2]
[365045408,1749425444025,-727.51,0.0001885,2]
[365045409,1749425444035,-663.6,0.0001885,2]
[365045410,1749425444045,-382.78,0.0001885,2]
[365045411,1749425444054,-424.54262234,0.00018859,2]
[365045412,1749425444063,-480.0,0.00018859,2]
[365045413,1749425444073,-480.0,0.00018859,2]
[365045414,1749425444082,-480.0,0.0001886,2]
[365045415,1749425444092,-480.0,0.0001886,2]
[365045416,1749425444101,-480.0,0.0001886,2]
[365045417,1749425444111,-480.0,0.0001886,2]
[365045418,1749425444120,-617.55545566,0.0001886,2]
[365045419,1749425444130,-480.0,0.0001886,2]
[365045420,1749425444139,-480.0,0.0001886,2]
[365045421,1749425444149,-480.0,0.0001886,2]
[365045422,1749425444158,-480.0,0.0001886,2]
[365045423,1749425444167,-480.0,0.0001886,2]
[365045424,1749425444177,-420.0,0.0001886,2]
[365045425,1749425444187,-480.0,0.0001886,2]
[365045426,1749425444196,-480.0,0.0001886,2]
[365045427,1749425444205,-500.0,0.0001886,2]
[365045428,1749425444214,-432.24759043,0.0001886,2]
[365045429,1749425444223,-480.0,0.0001886,2]
[365045430,1749425444232,-480.0,0.0001886,2]
[365045431,1749425444242,-480.0,0.0001886,2]
[365045432,1749425444251,-480.0,0.0001886,2]
[365045433,1749425444261,-480.0,0.0001886,2]
[365045434,1749425444270,-480.0,0.0001886,2]
[365045435,1749425444279,-480.0,0.0001886,2]
[365045436,1749425444289,-516.34950864,0.0001886,2]
[365045437,1749425444298,-480.0,0.0001886,2]
[365045438,1749425444307,-480.0,0.0001886,2]
[365045439,1749425444316,-480.0,0.0001886,2]
[365045440,1749425444325,-480.0,0.0001886,2]
[365045441,1749425444335,-480.0,0.0001886,2]
[365045442,1749425444344,-480.0,0.0001886,2]
[365045443,1749425444353,-480.0,0.0001886,2]
[365045444,1749425444362,-480.0,0.0001886,2]
[365045445,1749425444371,-480.0,0.0001886,2]
[365045446,1749425444381,-480.0,0.0001886,2]
[365045447,1749425444391,-480.0,0.0001886,2]
[365045448,1749425444400,-598.52,0.0001886,2]
[365045449,1749425444408,-480.0,0.0001886,2]
[365045450,1749425444418,-480.0,0.0001886,2]
[365045451,1749425444427,-480.0,0.0001886,2]
[365045452,1749425444437,-480.0,0.0001886,2]
[365045453,1749425444446,-480.0,0.0001886,2]
[365045454,1749425444456,-480.0,0.0001886,2]
[365045455,1749425444476,-463.13095161,0.0001886,2]
[365045456,1749425444485,-480.0,0.0001886,2]
[365045457,1749425444495,-480.0,0.0001886,2]
[365045458,1749425444503,-480.0,0.0001886,2]
[365045459,1749425444512,-480.0,0.0001886,2]
[365045460,1749425444523,-480.0,0.0001886,2]
[365045461,1749425444531,-480.0,0.0001886,2]
[365045462,1749425444540,-480.0,0.0001886,2]
[365045463,1749425444550,-480.0,0.0001886,2]
[365045464,1749425444559,-480.0,0.0001886,2]
[365045465,1749425444568,-514.89713408,0.0001886,2]
[365045466,1749425444577,-480.0,0.0001886,2]
[365045467,1749425444586,-480.0,0.0001886,2]
[365045468,1749425444596,-480.0,0.0001886,2]
[365045469,1749425444605,-480.0,0.0001886,2]
[365045470,1749425444614,-480.0,0.0001886,2]
[365045471,1749425444625,-310.76938537,0.0001886,2]
[365045472,1749425444636,-480.0,0.0001886,2]
[365045473,1749425444645,-480.0,0.0001886,2]
[365045474,1749425444654,-480.0,0.0001886,2]
[365045475,1749425444663,-480.0,0.0001886,2]
[365045476,1749425444672,-480.0,0.0001886,2]
[365045477,1749425444681,-480.0,0.0001886,2]
[365045478,1749425444694,-480.0,0.0001886,2]
[365045479,1749425444704,-480.0,0.0001886,2]
[365045480,1749425444713,-480.0,0.0001886,2]
[365045481,1749425444722,-480.0,0.0001886,2]
[365045482,1749425444731,-480.0,0.0001886,2]
[365045483,1749425444742,-574.34251736,0.0001886,2]
[365045484,1749425444751,-194.10544804,0.0001886,2]
[365045485,1749425444760,-480.0,0.0001886,2]
[365045486,1749425444770,-480.0,0.0001886,2]
[365045487,1749425444779,-480.0,0.0001886,2]
[365045488,1749425444788,-480.0,0.0001886,2]
[365045489,1749425444797,-480.0,0.0001886,2]
[365045490,1749425444806,-480.0,0.0001886,2]
[365045491,1749425444815,-480.0,0.0001886,2]
[365045492,1749425444823,-480.0,0.0001886,2]
[365045493,1749425444833,-480.0,0.0001886,2]
[365045494,1749425444842,-480.0,0.0001886,2]
[365045495,1749425444851,-591.98524284,0.0001886,2]
[365045496,1749425444860,-480.0,0.0001886,2]
[365045497,1749425444869,-216.701922,0.0001886,2]
[365045498,1749425444879,-216.701922,0.0001886,2]
[365045499,1749425444888,-480.0,0.0001886,2]
[365045500,1749425444897,-480.0,0.0001886,2]
[365045501,1749425444906,-416.29677239,0.0001886,2]
[365045502,1749425444915,-480.0,0.0001886,2]
[365045503,1749425444924,-480.0,0.0001886,2]
[365045504,1749425444933,-480.0,0.0001886,2]
[365045505,1749425444942,-422.2083175,0.0001886,2]
[365045506,1749425444951,-480.0,0.0001886,2]
[365045507,1749425444960,-480.0,0.0001886,2]
[365045508,1749425444968,-480.0,0.0001886,2]
[365045509,1749425444977,-480.0,0.0001886,2]
[365045510,1749425444986,-480.0,0.0001886,2]
[365045511,1749425444995,-480.0,0.0001886,2]
[365045512,1749425445005,-424.17008544,0.0001886,2]
[365045513,1749425445014,-480.0,0.0001886,2]
[365045514,1749425445023,-480.0,0.0001886,2]
[365045515,1749425445032,-480.0,0.0001886,2]
[365045516,1749425445041,-480.0,0.0001886,2]
[365045517,1749425445050,-480.0,0.0001886,2]
[365045518,1749425445060,-480.0,0.0001886,2]
[365045519,1749425445069,-480.0,0.0001886,2]
[365045520,1749425445078,-480.0,0.0001886,2]
[365045521,1749425445087,-480.0,0.0001886,2]
[365045522,1749425445096,-480.0,0.0001886,2]
[365045523,1749425445105,-480.0,0.0001886,2]
[365045524,1749425445114,-420.0,0.0001886,2]
[365045525,1749425445124,-480.0,0.0001886,2]
[365045526,1749425445133,-480.0,0.0001886,2]
[365045527,1749425445142,-480.0,0.0001886,2]
[365045528,1749425445151,-480.0,0.0001886,2]
[365045529,1749425445161,-480.0,0.0001886,2]
[365045530,1749425445171,-480.0,0.0001886,2]
[365045531,1749425445180,-480.0,0.0001886,2]
[365045532,1749425445190,-5093.25802692,0.0001886,2]
[365045533,1749425445199,-480.0,0.0001886,2]
[365045534,1749425445209,-480.0,0.0001886,2]
[365045535,1749425445219,-496.61,0.0001886,2]
[365045536,1749425445228,-480.0,0.0001886,2]
[365045537,1749425445238,-480.0,0.0001886,2]
[365045538,1749425445247,-480.0,0.0001886,2]
[365045539,1749425445256,-480.0,0.0001886,2]
[365045540,1749425445266,-480.0,0.0001886,2]
[365045541,1749425445275,-480.0,0.0001886,2]
[365045542,1749425445285,-186.52617664,0.0001886,2]
[365045543,1749425445294,-480.0,0.0001886,2]
[365045544,1749425445303,-480.0,0.0001886,2]
[365045545,1749425445312,-480.0,0.0001886,2]
[365045546,1749425445321,-480.0,0.0001886,2]
[365045547,1749425445331,-151.0,0.0001886,2]
[365045548,1749425445340,-198.601378,0.0001886,2]
[365045549,1749425445349,-243.7984,0.00018861,2]
[365045550,1749425445359,-480.0,0.00018861,2]
[365045551,1749425445367,-1194.38,0.00018861,2]
[365045552,1749425445377,-604.14,0.00018861,2]
[365045553,1749425445386,-693.04,0.00018861,2]
[365045554,1749425445396,-808.23,0.00018861,2]
[365045555,1749425445405,-480.0,0.00018861,2]
[365045556,1749425445414,-480.0,0.00018861,2]
[365045557,1749425445424,-480.0,0.00018861,2]
[365045558,1749425445433,-480.0,0.00018861,2]
[365045559,1749425445442,-480.0,0.00018861,2]
[365045560,1749425445451,-480.0,0.00018861,2]
[365045561,1749425445460,-480.0,0.00018861,2]
[365045562,1749425445470,-823.4,0.00018861,2]
[365045563,1749425445479,-480.0,0.00018861,2]
[365045564,1749425445488,-480.0,0.00018861,2]
[365045565,1749425445497,-480.0,0.00018861,2]
[365045566,1749425445507,-480.0,0.00018861,2]
[365045567,1749425445516,-480.0,0.00018861,2]
[365045568,1749425445525,-480.0,0.00018861,2]
[365045569,1749425445535,-480.0,0.00018861,2]
[365045570,1749425445544,-480.0,0.00018861,2]
[365045571,1749425445553,-480.0,0.00018861,2]
[365045572,1749425445563,-912.18,0.00018861,2]
[365045573,1749425445572,-480.0,0.00018861,2]
[365045574,1749425445581,-480.0,0.00018861,2]
[365045575,1749425445589,-772.25,0.00018861,2]
[365045576,1749425445599,-480.0,0.00018861,2]
[365045577,1749425445608,-480.0,0.00018861,2]
[365045578,1749425445617,-549.28,0.00018861,2]
[365045579,1749425445626,-480.0,0.00018861,2]
[365045580,1749425445635,-480.0,0.00018861,2]
[365045581,1749425445645,-480.0,0.00018861,2]
[365045582,1749425445654,-480.0,0.00018861,2]
[365045583,1749425445663,-811.78,0.00018861,2]
[365045584,1749425445673,-1522.77,0.00018861,2]
[365045585,1749425445682,-633.17,0.00018861,2]
[365045586,1749425445692,-480.0,0.00018861,2]
[365045587,1749425445702,-595.66,0.00018861,2]
[365045588,1749425445711,-496.53,0.00018861,2]
[365045589,1749425445720,-480.0,0.00018861,2]
[365045590,1749425445730,-480.0,0.00018861,2]
[365045591,1749425445740,-480.0,0.00018861,2]
[365045592,1749425445750,-480.0,0.00018861,2]
[365045593,1749425445759,-480.0,0.00018861,2]
[365045594,1749425445769,-480.0,0.00018861,2]
[365045595,1749425445778,-480.0,0.00018861,2]
[365045596,1749425445787,-480.0,0.00018861,2]
[365045597,1749425445797,-400.0,0.00018861,2]
[365045598,1749425445807,-480.0,0.00018861,2]
[365045599,1749425445816,-480.0,0.00018861,2]
[365045600,1749425445824,-480.0,0.00018861,2]
[365045601,1749425445834,-480.0,0.00018861,2]
[365045602,1749425445843,-480.0,0.00018861,2]
[365045603,1749425445852,-480.0,0.00018861,2]
[365045604,1749425445861,-480.0,0.00018861,2]
[365045605,1749425445870,-722.96,0.00018861,2]
[365045606,1749425445880,-480.0,0.00018861,2]
[365045607,1749425445889,-480.0,0.00018861,2]
[365045608,1749425445898,-480.0,0.00018861,2]
[365045609,1749425445908,-480.0,0.00018861,2]
[365045610,1749425445918,-480.0,0.00018861,2]
[365045611,1749425445927,-480.0,0.00018861,2]
[365045612,1749425445937,-480.0,0.00018861,2]
[365045613,1749425445946,-364.29460556,0.00018861,2]
[365045614,1749425445956,-480.0,0.00018861,2]
[365045615,1749425445965,-480.0,0.00018861,2]
[365045616,1749425445975,-480.0,0.00018861,2]
[365045617,1749425445984,-480.0,0.00018861,2]
[365045618,1749425445993,-480.0,0.00018861,2]
[365045619,1749425446003,-480.0,0.00018861,2]
[365045620,1749425446012,-480.0,0.00018861,2]
[365045621,1749425446021,-480.0,0.00018861,2]
[365045622,1749425446030,-480.0,0.00018861,2]
[365045623,1749425446040,-480.0,0.00018861,2]
[365045624,1749425446049,-480.0,0.00018861,2]
[365045625,1749425446058,-539.04764189,0.00018861,2]
[365045626,1749425446068,-480.0,0.00018861,2]
[365045627,1749425446077,-480.0,0.00018861,2]
[365045628,1749425446086,-480.0,0.00018861,2]
[365045629,1749425446095,-480.0,0.00018861,2]
[365045630,1749425446105,-480.0,0.00018861,2]
[365045631,1749425446114,-365.61748333,0.00018861,2]
[365045632,1749425446123,-480.0,0.00018861,2]
[365045633,1749425446133,-480.0,0.00018861,2]
[365045634,1749425446142,-363.69922127,0.00018861,2]
[365045635,1749425446151,-677.07,0.00018861,2]
[365045636,1749425446161,-671.69,0.00018861,2]
[365045637,1749425446170,-216.701922,0.00018861,2]
[365045638,1749425446179,-216.701922,0.00018861,2]
[365045639,1749425446188,-480.0,0.00018861,2]
[365045640,1749425446198,-216.701922,0.00018861,2]
[365045641,1749425446207,-216.701922,0.00018861,2]
[365045642,1749425446216,-726.95,0.00018861,2]
[365045643,1749425446226,-3051.56,0.00018861,2]
[365045644,1749425446235,-480.0,0.00018861,2]
[365045645,1749425446244,-524.16,0.00018861,2]
[365045646,1749425446253,-480.0,0.00018861,2]
[365045647,1749425446263,-480.0,0.00018861,2]
[365045648,1749425446272,-486.42,0.00018861,2]
[365045649,1749425446281,-480.0,0.00018861,2]
[365045650,1749425446291,-480.0,0.00018861,2]
[365045651,1749425446300,-480.0,0.00018861,2]
[365045652,1749425446310,-480.0,0.00018861,2]
[365045653,1749425446320,-480.0,0.00018861,2]
[365045654,1749425446330,-480.0,0.00018861,2]
[365045655,1749425446339,-7615.28,0.00018861,2]
[365045656,1749425446349,-647.27,0.00018861,2]
[365045657,1749425446358,-999.15,0.00018861,2]
[365045658,1749425446368,-701.71,0.00018861,2]
[365045659,1749425446377,-480.0,0.00018861,2]
[365045660,1749425446386,-360.0,0.00018861,2]
[365045661,1749425446396,-480.0,0.00018861,2]
[365045662,1749425446405,-480.0,0.00018861,2]
[365045663,1749425446414,-480.0,0.00018861,2]
[365045664,1749425446423,-480.0,0.00018861,2]
[365045665,1749425446432,-480.0,0.00018861,2]
[365045666,1749425446441,-282.04,0.00018861,2]
[365045667,1749425446451,-360.0,0.00018861,2]
[365045668,1749425446460,-2000.0,0.00018861,2]
[365045669,1749425446469,-542.42,0.00018861,2]
[365045670,1749425446479,-480.0,0.00018861,2]
[365045671,1749425446489,-480.0,0.00018861,2]
[365045672,1749425446499,-480.0,0.00018861,2]
[365045673,1749425446509,-480.0,0.00018861,2]
[365045674,1749425446518,-480.0,0.00018861,2]
[365045675,1749425446527,-480.0,0.00018861,2]
[365045676,1749425446537,-480.0,0.00018861,2]
[365045677,1749425446547,-480.0,0.00018861,2]
[365045678,1749425446557,-480.0,0.00018861,2]
[365045679,1749425446567,-1766.62,0.00018861,2]
[365045680,1749425446577,-480.0,0.00018861,2]
[365045681,1749425446587,-480.0,0.00018861,2]
[365045682,1749425446596,-480.0,0.00018861,2]
[365045683,1749425446606,-492.06,0.00018861,2]
[365045684,1749425446616,-2396.23,0.00018861,2]
[365045685,1749425446626,-480.0,0.00018861,2]
[365045686,1749425446635,-480.0,0.00018861,2]
[365045687,1749425446645,-480.0,0.00018861,2]
[365045688,1749425446654,-480.0,0.00018861,2]
[365045689,1749425446663,-2764.63,0.00018861,2]
[365045690,1749425446681,-480.0,0.00018861,2]
[365045691,1749425446697,-327.44,0.00018861,2]
[365045692,1749425446706,-3777.34,0.00018861,2]
[365045693,1749425446716,-480.0,0.00018861,2]
[365045694,1749425446726,-480.0,0.00018861,2]
[365045695,1749425446736,-480.0,0.00018861,2]
[365045696,1749425446746,-480.0,0.00018861,2]
[365045697,1749425446755,-560.0,0.00018861,2]
[365045698,1749425446765,-480.0,0.00018861,2]
[365045699,1749425446775,-480.0,0.00018861,2]
[365045700,1749425446786,-480.0,0.00018861,2]
[365045702,1749425446796,-878.95,0.00018861,2]
[365045704,1749425446806,-151.0,0.00018861,2]
[365045706,1749425446815,-151.0,0.00018861,2]
[365045707,1749425446824,-480.0,0.00018861,2]
[365045708,1749425446835,-480.0,0.00018861,2]
[365045709,1749425446845,-1299.39,0.00018861,2]
[365045710,1749425446856,-480.0,0.00018861,2]
[365045711,1749425446866,-480.0,0.00018861,2]
[365045712,1749425446877,-480.0,0.00018861,2]
[365045713,1749425446887,-480.0,0.00018861,2]
[365045714,1749425446896,-150.0,0.00018867,2]
[365045715,1749425446907,-150.0,0.00018879,2]
[365045716,1749425446917,-150.0,0.00018881,2]
[365045717,1749425446928,-1000.0,0.00018882,2]
[365045718,1749425447143,-150.0,0.00018882,2]
[365045719,1749425447154,-150.0,0.00018882,2]
[365045720,1749425447164,-150.0,0.00018885,2]
[365045721,1749425447173,-2824.29885017,0.00018886,2]
[365045722,1749425447183,-150.0,0.00018888,2]
[365045723,1749425447193,-250.0,0.00018889,2]
[365045724,1749425447203,-1435.41,0.0001889,2]
[365045725,1749425447213,-150.0,0.00018892,2]
[365045726,1749425447223,-150.0,0.00018893,2]
[365045727,1749425447233,-150.0,0.00018894,2]
[365045728,1749425447242,-1900.0,0.000189,6]
[365045729,1749425447251,-4976.64483385,0.000189,2]
[365045730,1749425447261,-150.0,0.00018903,2]
[365045731,1749425447271,-150.0,0.00018903,2]
[365045732,1749425447281,-150.0,0.00018905,2]
[365045733,1749425447290,-150.0,0.00018908,2]
[365045734,1749425447300,-150.0,0.00018916,2]
[365045735,1749425447310,-150.0,0.00018917,2]
[365045736,1749425447320,-257.472,0.0001892,2]
[365045737,1749425447329,-150.0,0.00018921,2]
[365045738,1749425447339,-150.0,0.00018926,2]
[365045739,1749425447348,-150.0,0.00018938,2]
[365045740,1749425447358,-150.0,0.00018938,2]
[365045741,1749425447368,-1000.0,0.00018938,2]
[365045742,1749425447378,-150.0,0.00018939,2]
[365045743,1749425447388,-150.0,0.00018942,2]
[365045744,1749425447398,-150.0,0.00018945,2]
[365045745,1749425447408,-150.0,0.00018948,2]
[365045746,1749425447417,-150.0,0.00018957,2]
[365045747,1749425447427,-150.0,0.00018964,2]
[365045748,1749425447436,-150.0,0.00018964,2]
[365045749,1749425447447,-150.0,0.00018967,2]
[365045750,1749425447456,-4976.64483379,0.00018969,2]
[365045751,1749425447466,-150.0,0.00018969,2]
[365045752,1749425447476,-150.0,0.00018972,2]
[365045753,1749425447487,-150.0,0.00018975,2]
[365045754,1749425447497,-150.0,0.00018982,2]
[365045755,1749425447507,-150.0,0.00018982,2]
[365045756,1749425447516,-150.0,0.00018985,2]
[365045757,1749425447525,-150.0,0.00018985,2]
[365045758,1749425447535,-150.0,0.0001899,2]
[365045759,1749425447544,-150.0,0.0001899,2]
[365045760,1749425447554,-150.0,0.00018991,2]
[365045761,1749425447563,-150.0,0.00018993,2]
[365045762,1749425447573,-150.0,0.00018997,2]
[365045763,1749425447583,-3494.72207,0.00019,30]
[365045764,1749425447593,-250.0,0.00019,2]
[365045765,1749425447602,-150.0,0.00019,2]
[365045766,1749425447612,-160.8346859,0.00019,2]
[365045767,1749425447621,-16000.0,0.00019,2]
[365045768,1749425447630,-150.0,0.00019001,2]
[365045769,1749425447639,-150.0,0.00019003,2]
[365045770,1749425447649,-150.0,0.00019006,2]
[365045771,1749425447658,-500.0,0.00019007,2]
[365045772,1749425447667,-150.0,0.00019011,2]
[365045773,1749425447677,-150.0,0.00019011,2]
[365045774,1749425447686,-216.701922,0.00019013,2]
[365045775,1749425447699,-216.701922,0.00019013,2]
[365045776,1749425447708,-480.0,0.00019014,2]